bitfinex-derivatives/quotes_SOLF0:USTF0_20260123
["timestamp","ask_amount","ask_price","bid_price","bid_amount"]
[1769186231442,11.77529104,128.55,128.44,109.133]
[1769186231644,11.77529104,128.55,128.46,109.1194]
[1769186232035,11.77529104,128.55,128.48,7.0135]
[1769186232341,11.77529104,128.55,128.45,109.1244]
[1769186232937,11.77529104,128.58,128.47,109.1105]
[1769186233335,11.77529104,128.58,128.48,109.1018]
[1769186233738,11.77529104,128.58,128.51,7.0119]
[1769186233937,7.0074,128.6,128.51,7.0119]
[1769186234141,11.77529104,128.61,128.51,109.0756]
[1769186234442,11.77529104,128.61,128.54,7.0103]
[1769186234741,11.77529104,128.61,128.51,109.0756]
[1769186235137,11.77529104,128.61,128.52,7.0111]
[1769186235439,11.77529104,128.61,128.52,109.0672]
[1769186235837,11.77529104,128.61,128.56,7.0092]
[1769186236441,11.77529104,128.61,128.54,7.01]
[1769186236640,7.0056,128.63,128.53,109.0589]
[1769186236838,18.78089104,128.63,128.53,109.0589]
[1769186237037,11.77529104,128.63,128.51,109.0756]
[1769186237338,11.77529104,128.62,128.5,109.085]
[1769186238640,11.77529104,128.62,128.53,7.0109]
[1769186239037,11.77529104,128.62,128.5,109.085]
[1769186239038,0.04901671,128.57,128.51,109.0724]
[1769186239942,0.04901671,128.57,128.53,7.0105]
[1769186240348,11.77529104,128.63,128.52,109.0645]
[1769186240750,18.8058994,128.62,128.52,109.0645]
[1769186241040,11.7997994,128.62,128.53,109.0598]
[1769186241551,11.7997994,128.62,128.55,7.0098]
[1769186242440,11.7997994,128.65,128.55,109.0424]
[1769186242638,11.7997994,128.65,128.54,109.049]
[1769186242840,7.0051,128.64,128.56,7.0089]
[1769186243043,18.8048994,128.64,128.56,7.0089]
[1769186243341,11.7997994,128.64,128.52,109.0645]
[1769186243650,18.8053994,128.63,128.55,7.0098]
[1769186244353,11.7997994,128.63,128.55,109.042]
[1769186244537,7.0049,128.65,128.55,109.042]
[1769186244538,18.8046994,128.65,128.55,109.042]
[1769186245150,11.7997994,128.64,128.57,7.0087]
[1769186245450,11.7997994,128.64,128.55,109.042]
[1769186245648,11.7997994,128.64,128.57,7.0086]
[1769186245950,11.7997994,128.64,128.55,109.042]
[1769186246247,11.7997994,128.64,128.58,7.0081]
[1769186247139,11.7997994,128.64,128.59,7.0075]
[1769186247652,11.7997994,128.68,128.58,109.0162]
[1769186248345,11.7997994,128.67,128.59,7.0072]
[1769186248747,11.7997994,128.67,128.55,109.042]
[1769186249750,11.7997994,128.66,128.58,7.0082]
[1769186250753,7.0044,128.65,128.58,7.0082]
[1769186251049,11.7997994,128.65,128.57,7.0088]
[1769186251246,11.7997994,128.65,128.52,109.0617]
[1769186251960,11.7997994,128.62,128.55,7.0096]
[1769186253056,11.7997994,128.61,128.49,109.088]
[1769186253755,18.8081994,128.58,128.48,109.0977]
[1769186253952,11.7997994,128.57,128.46,109.115]
[1769186254158,11.84963545,128.56,128.45,5.07212587]
[1769186254346,11.7997994,128.54,128.46,7.0144]
[1769186254746,11.7997994,128.54,128.43,109.1418]
[1769186254953,7.0117,128.52,128.44,7.0155]
[1769186255351,11.7997994,128.54,128.44,109.1341]
[1769186255549,11.7997994,128.54,128.47,7.0141]
[1769186256753,11.7997994,128.54,128.48,7.0135]
[1769186256956,11.7997994,128.57,128.46,109.1171]
[1769186257157,11.7997994,128.57,128.47,109.1094]
[1769186257360,11.7997994,128.57,128.48,109.0987]
[1769186258957,11.7997994,128.57,128.51,7.012]
[1769186259258,11.7997994,128.6,128.52,109.0661]
[1769186259658,11.7997994,128.63,128.55,7.0097]
[1769186260260,11.7997994,128.63,128.56,7.0092]
[1769186260856,11.7997994,128.62,128.54,7.01]
[1769186261161,0.04989802,128.61,128.54,7.01]
[1769186262763,11.84969742,128.61,128.54,7.01]
[1769186264561,11.84969742,128.61,128.55,7.0097]
[1769186264772,0.04989802,128.61,128.54,109.0513]
[1769186265063,18.8051994,128.64,128.54,109.0513]
[1769186265458,18.8051994,128.64,128.56,7.0091]
[1769186265864,18.8051994,128.64,128.54,109.0487]
[1769186266251,11.7997994,128.64,128.55,109.0421]
[1769186266458,11.7997994,128.64,128.56,109.0346]
[1769186267463,11.7997994,128.67,128.58,109.0147]
[1769186267655,11.7997994,128.7,128.59,109.0061]
[1769186267852,11.7997994,128.7,128.6,109.0003]
[1769186268165,11.7997994,128.7,128.61,108.9909]
[1769186268469,0.04975764,128.66,128.61,108.9909]
[1769186268958,0.04975764,128.66,128.62,7.0057]
[1769186269463,18.7999994,128.73,128.62,108.9808]
[1769186269759,18.7999994,128.73,128.63,108.9721]
[1769186269963,18.8005994,128.72,128.63,7.0052]
[1769186270163,11.7997994,128.76,128.64,108.9633]
[1769186270359,11.7997994,128.79,128.68,108.9296]
[1769186270556,11.7997994,128.78,128.67,5.07212587]
[1769186270762,11.7997994,128.78,128.67,114.01062587]
[1769186270964,125.70082527,128.81,128.68,108.9301]
[1769186271260,125.70082527,128.81,128.7,7.0013]
[1769186271261,18.7963994,128.8,128.7,7.0013]
[1769186271468,11.7997994,128.79,128.67,114.01062587]
[1769186271667,11.7997994,128.77,128.65,108.9568]
[1769186272171,11.7997994,128.77,128.67,108.9394]
[1769186272461,11.7997994,128.8,128.7,108.9141]
[1769186272666,11.7997994,128.8,128.7,108.916]
[1769186273057,11.7997994,128.8,128.69,5.07212587]
[1769186273257,11.7997994,128.8,128.7,108.9137]
[1769186273458,11.7997994,128.8,128.69,5.07212587]
[1769186273861,11.7997994,128.8,128.74,0.0495962]
[1769186274463,15.13702029,128.83,128.74,0.0495962]
[1769186274464,18.7951994,128.82,128.74,0.0495962]
[1769186274661,11.7997994,128.81,128.74,0.0495962]
[1769186275170,18.7956994,128.81,128.71,7.0008]
[1769186275367,11.7997994,128.81,128.71,7.0008]
[1769186275768,108.819,128.82,128.67,108.9359]
[1769186275769,11.7997994,128.79,128.69,7.0019]
[1769186276780,11.7997994,128.82,128.71,108.9073]
[1769186277277,11.7997994,128.82,128.7,113.98582587]
[1769186277776,11.7997994,128.82,128.71,108.9056]
[1769186278279,11.7997994,128.82,128.72,108.8956]
[1769186278671,11.7997994,128.82,128.73,108.8903]
[1769186278976,0.0490188,128.78,128.73,108.8903]
[1769186279169,0.0490188,128.78,128.73,6.9998]
[1769186279764,0.0490188,128.78,128.74,6.9993]
[1769186279970,10.06489442,128.83,128.75,108.8709]
[1769186280177,10.06489442,128.83,128.74,108.877]
[1769186280375,11.7997994,128.82,128.7,113.98412587]
[1769186280677,11.7997994,128.82,128.69,108.9179]
[1769186280678,10.06489442,128.83,128.76,108.8649]
[1769186281380,10.06489442,128.83,128.76,6.9984]
[1769186281577,21.86469382,128.83,128.73,5.07212587]
[1769186281766,21.86469382,128.83,128.74,6.9992]
[1769186281968,11.7997994,128.81,128.69,108.9181]
[1769186282372,11.7997994,128.81,128.7,108.9155]
[1769186282573,11.7997994,128.81,128.72,108.8963]
[1769186282776,11.7997994,128.81,128.73,6.9999]
[1769186282981,11.7997994,128.81,128.69,108.9181]
[1769186283476,11.7997994,128.79,128.67,5.07212587]
[1769186283682,11.7997994,128.78,128.66,108.9429]
[1769186284184,11.7997994,128.78,128.68,108.9323]
[1769186284373,11.7997994,128.78,128.67,108.9407]
[1769186284574,18.7974994,128.78,128.68,7.0025]
[1769186284774,11.7997994,128.77,128.68,7.0025]
[1769186285175,11.7997994,128.77,128.68,108.9329]
[1769186285395,108.8176,128.82,128.69,108.9242]
[1769186285577,18.7951994,128.82,128.74,6.9992]
[1769186286079,18.7951994,128.82,128.71,108.9039]
[1769186286481,18.7951994,128.82,128.73,6.9999]
[1769186286677,11.7997994,128.8,128.69,108.9242]
[1769186286879,11.7997994,128.8,128.75,0.04936735]
[1769186287183,11.7997994,128.78,128.69,7.0018]
[1769186287783,18.7978994,128.77,128.66,108.9433]
[1769186288386,11.7997994,128.75,128.65,108.9528]
[1769186288578,11.7997994,128.75,128.64,108.9617]
[1769186288779,18.7989994,128.75,128.66,7.0037]
[1769186288985,0.04945061,128.73,128.66,7.0037]
[1769186289382,0.04945061,128.73,128.64,7.0046]
[1769186289587,0.04945061,128.73,128.63,108.9753]
[1769186289884,18.7974994,128.78,128.69,7.0019]
[1769186290183,11.8245247,128.77,128.66,108.946]
[1769186290773,11.8245247,128.75,128.64,108.9657]
[1769186291382,11.8245247,128.73,128.62,108.9797]
[1769186292688,11.8245247,128.72,128.6,410.03487299]
[1769186293283,7.0015,128.71,128.63,7.0054]
[1769186293789,11.8245247,128.71,128.6,301.04107299]
[1769186293989,11.8245247,128.71,128.62,7.0059]
[1769186294487,11.8245247,128.71,128.6,410.03837299]
[1769186294887,11.8245247,128.69,128.61,7.0063]
[1769186295389,11.8245247,128.69,128.6,301.04107299]
[1769186295390,11.8245247,128.69,128.62,7.0059]
[1769186296985,11.8245247,128.72,128.62,108.9796]
[1769186297185,11.8245247,128.76,128.64,108.9649]
[1769186297787,6.9997,128.74,128.64,108.9649]
[1769186297988,11.8245247,128.74,128.62,5.07212587]
[1769186298187,11.8245247,128.72,128.6,301.04107299]
[1769186298595,18.8269247,128.69,128.6,301.04107299]
[1769186299489,18.8269247,128.69,128.6,308.04777299]
[1769186299793,18.8269247,128.69,128.6,301.04107299]
[1769186300492,11.8245247,128.68,128.57,109.0221]
[1769186300694,11.8245247,128.67,128.55,402.9182]
[1769186300887,11.8245247,128.67,128.56,109.0341]
[1769186302492,18.8285247,128.66,128.57,7.0083]
[1769186302687,11.8245247,128.65,128.57,7.0083]
[1769186303183,11.8245247,128.64,128.56,7.0092]
[1769186303686,11.8245247,128.64,128.53,109.0536]
[1769186304787,18.8303247,128.63,128.53,109.0589]
[1769186304992,108.9462,128.67,128.56,109.0303]
[1769186304993,11.8245247,128.67,128.56,109.0303]
[1769186305695,11.8245247,128.67,128.57,109.0253]
[1769186306086,23.89885057,128.7,128.59,109.007]
[1769186306286,16.89665057,128.73,128.62,108.9808]
[1769186306494,11.8245247,128.73,128.64,108.963]
[1769186306697,11.8245247,128.73,128.66,7.0037]
[1769186306898,11.8245247,128.73,128.6,5.07212587]
[1769186307090,11.8245247,128.73,128.63,5.07212587]
[1769186307293,11.8245247,128.76,128.63,5.07212587]
[1769186308190,11.8245247,128.75,128.6,5.07212587]
[1769186308696,11.8245247,128.75,128.63,5.07212587]
[1769186308898,11.8245247,128.75,128.63,5.06510553]
[1769186314190,11.8245247,128.75,128.59,273.44]
[1769186314397,11.8245247,128.72,128.59,5.06510553]
[1769186315105,11.8245247,128.72,128.62,5.06510553]
[1769186315306,11.79950089,128.75,128.62,5.06510553]
[1769186316401,0.0499828,128.7,128.62,5.06510553]
[1769186316904,11.79950089,128.73,128.62,5.06510553]
[1769186317300,0.04910337,128.67,128.62,5.06510553]
[1769186317606,11.79950089,128.73,128.62,5.06510553]
[1769186318105,11.79950089,128.73,128.59,5.06510553]
[1769186319698,11.79950089,128.76,128.62,5.06510553]
[1769186322308,11.79950089,128.76,128.65,5.06510553]
[1769186323908,11.79950089,128.76,128.63,5.06510553]
[1769186324399,11.79950089,128.76,128.6,5.06510553]
[1769186326509,11.79950089,128.73,128.57,5.06510553]
[1769186327210,11.79950089,128.73,128.6,5.06510553]
[1769186329911,11.79950089,128.73,128.62,108.9787]
[1769186330807,11.79950089,128.72,128.66,7.0038]
[1769186332209,11.79950089,128.72,128.64,7.0045]
[1769186332914,11.79950089,128.71,128.65,7.0044]
[1769186336214,11.79950089,128.71,128.62,108.981]
[1769186336412,11.79950089,128.73,128.64,108.9635]
[1769186337012,11.79950089,128.73,128.67,7.0033]
[1769186337206,11.79950089,128.73,128.63,108.9739]
[1769186337608,11.79950089,128.73,128.58,109.014]
[1769186337609,11.79950089,128.69,128.6,108.9972]
[1769186337922,11.79950089,128.69,128.61,108.9877]
[1769186338519,11.79950089,128.72,128.63,108.9752]
[1769186340014,11.79950089,128.72,128.66,7.0037]
[1769186340511,11.79950089,128.72,128.67,7.0031]
[1769186340714,5.06510553,128.77,128.68,108.9323]
[1769186341010,5.06510553,128.8,128.69,108.9236]
[1769186341611,12.06180553,128.8,128.72,7.0006]
[1769186342114,12.06180553,128.8,128.69,108.9236]
[1769186342115,6.9967,128.8,128.73,7.0]
[1769186342509,15.12999995,128.83,128.73,6.9998]
[1769186342706,15.12999995,128.83,128.69,108.9236]
[1769186342707,5.89975089,128.81,128.69,108.9236]
[1769186343015,5.89975089,128.77,128.67,108.9357]
[1769186343316,5.89975089,128.77,128.68,108.9322]
[1769186343620,5.89975089,128.8,128.7,108.9137]
[1769186343821,5.89975089,128.8,128.73,6.9997]
[1769186344315,5.89975089,128.8,128.74,6.9992]
[1769186344516,15.96464531,128.83,128.74,108.8777]
[1769186344822,15.96464531,128.83,128.79,6.9967]
[1769186344823,10.06489442,128.83,128.79,6.9967]
[1769186345119,12.89235089,128.87,128.79,6.9967]
[1769186345316,5.89975089,128.87,128.78,108.8478]
[1769186346320,5.89975089,128.87,128.75,108.8734]
[1769186346523,5.89975089,128.87,128.77,108.8563]
[1769186348022,5.89975089,128.86,128.79,6.9966]
[1769186348213,5.89975089,128.86,128.76,108.8645]
[1769186348622,5.89975089,128.88,128.77,108.8533]
[1769186348923,5.89975089,128.91,128.79,108.8373]
[1769186349120,6.9916,128.89,128.8,6.9961]
[1769186349418,5.89975089,128.88,128.75,108.8699]
[1769186349620,5.89975089,128.87,128.75,108.8699]
[1769186350227,5.89975089,128.85,128.77,6.9976]
[1769186350723,5.89975089,128.85,128.76,108.86]
[1769186350922,5.89975089,128.88,128.78,108.8449]
[1769186351225,5.89975089,128.88,128.77,5.06510553]
[1769186351524,5.89975089,128.88,128.79,6.9966]
[1769186351829,5.89975089,128.88,128.78,108.8454]
[1769186352937,5.89975089,128.88,128.8,6.996]
[1769186353623,12.89235089,128.87,128.78,6.9972]
[1769186354120,5.89975089,128.86,128.78,6.9972]
[1769186354522,12.89135089,128.89,128.78,108.8477]
[1769186354720,12.89135089,128.89,128.79,108.8397]
[1769186354922,12.89135089,128.89,128.8,108.8311]
[1769186354923,5.89975089,128.89,128.8,108.8311]
[1769186355132,5.89975089,128.89,128.79,108.8397]
[1769186355521,5.89975089,128.88,128.76,108.86]
[1769186356623,12.89305089,128.86,128.75,113.93550553]
[1769186358024,12.89305089,128.86,128.78,6.9972]
[1769186358227,5.89975089,128.84,128.74,108.8753]
[1769186359634,5.89975089,128.8,128.68,108.9263]
[1769186359834,5.89975089,128.8,128.67,108.9372]
[1769186360038,5.89975089,128.77,128.68,7.0024]
[1769186360232,5.89975089,128.77,128.67,108.9372]
[1769186360536,5.89975089,128.77,128.65,108.9545]
[1769186361232,5.89975089,128.78,128.68,108.9316]
[1769186361436,5.89975089,128.81,128.69,108.9191]
[1769186361625,5.89975089,128.81,128.7,0.04901721]
[1769186362132,5.89975089,128.81,128.69,108.9191]
[1769186362341,5.89975089,128.78,128.66,108.9447]
[1769186363935,5.89975089,128.76,128.63,108.9706]
[1769186364131,5.89975089,128.75,128.64,108.9668]
[1769186364438,5.89975089,128.75,128.66,108.9494]
[1769186364829,5.89975089,128.75,128.65,108.9569]
[1769186365030,5.89975089,128.75,128.64,108.9636]
[1769186365230,5.89975089,128.75,128.65,108.9581]
[1769186365534,5.89975089,128.75,128.67,7.0032]
[1769186365737,5.89975089,128.75,128.64,108.9636]
[1769186366938,12.89905089,128.75,128.65,7.004]
[1769186367340,5.89975089,128.74,128.62,108.9791]
[1769186367735,5.89975089,128.74,128.63,108.9739]
[1769186367937,5.89975089,128.74,128.64,108.9662]
[1769186368235,5.89975089,128.74,128.67,7.0032]
[1769186369038,5.89975089,128.77,128.68,7.0025]
[1769186370939,5.89975089,128.76,128.68,7.0025]
[1769186371236,5.89975089,128.76,128.65,108.9571]
[1769186371428,5.89975089,128.76,128.66,7.0037]
[1769186371429,5.89975089,128.75,128.66,7.0037]
[1769186371635,5.89975089,128.73,128.66,7.0037]
[1769186372234,12.89995089,128.73,128.63,108.9739]
[1769186372434,5.89975089,128.73,128.63,108.9739]
[1769186372939,5.89975089,128.73,128.58,109.0121]
[1769186372940,5.89975089,128.72,128.59,109.0023]
[1769186373241,12.90205089,128.69,128.58,109.0121]
[1769186373632,5.89975089,128.68,128.56,109.0302]
[1769186373937,5.06394462,128.7,128.59,109.0089]
[1769186373938,10.96369551,128.7,128.59,109.0089]
[1769186374135,10.96369551,128.7,128.6,109.0007]
[1769186374437,5.89975089,128.7,128.6,109.0007]
[1769186374934,5.89975089,128.7,128.62,7.0059]
[1769186375134,5.89975089,128.7,128.6,109.0007]
[1769186375632,5.89975089,128.7,128.63,7.0054]
[1769186376140,5.89975089,128.69,128.61,7.0061]
[1769186376932,5.89975089,128.69,128.58,114.07694462]
[1769186376933,5.89975089,128.69,128.62,7.0056]
[1769186377230,12.90055089,128.72,128.62,7.0056]
[1769186377630,12.90055089,128.72,128.63,7.0051]
[1769186378038,5.89975089,128.72,128.65,7.0041]
[1769186378343,5.89975089,128.75,128.65,108.9563]
[1769186378842,5.89975089,128.75,128.67,0.04905378]
[1769186379443,5.89975089,128.75,128.66,7.0034]
[1769186379731,5.89975089,128.75,128.65,108.9563]
[1769186380240,12.89875089,128.75,128.67,7.0033]
[1769186380941,5.89975089,128.71,128.6,108.9982]
[1769186381644,5.89975089,128.69,128.59,109.0028]
[1769186382644,5.89975089,128.68,128.61,7.0063]
[1769186383237,7.0024,128.69,128.59,7.0072]
[1769186383238,5.89975089,128.67,128.59,7.0072]
[1769186383431,5.89975089,128.67,128.55,109.0375]
[1769186383835,5.89975089,128.67,128.58,109.015]
[1769186384029,5.06394462,128.69,128.59,109.0089]
[1769186384239,10.96369551,128.69,128.59,109.0089]
[1769186384438,17.96619551,128.69,128.59,109.0089]
[1769186384639,5.89975089,128.69,128.6,108.9994]
[1769186384839,5.89975089,128.69,128.61,108.9876]
[1769186385733,10.96369551,128.72,128.61,108.9876]
[1769186385935,7.0017,128.71,128.64,7.0047]
[1769186387233,10.96369551,128.72,128.65,7.0042]
[1769186387437,5.89975089,128.72,128.65,7.0042]
[1769186388040,12.90045089,128.72,128.65,7.0042]
[1769186388438,5.89975089,128.71,128.63,7.005]
[1769186388842,12.90145089,128.7,128.63,7.005]
[1769186389034,5.89975089,128.69,128.61,7.0061]
[1769186389440,12.90205089,128.69,128.59,109.0089]
[1769186389845,12.90205089,128.69,128.62,7.0059]
[1769186390742,5.89975089,128.67,128.6,7.0067]
[1769186390947,5.89975089,128.67,128.55,114.10014462]
[1769186391153,5.89975089,128.67,128.55,109.0362]
[1769186391342,12.90425089,128.65,128.56,7.0089]
[1769186391750,12.90425089,128.65,128.58,7.0082]
[1769186392246,10.96369551,128.69,128.57,109.0246]
[1769186392446,5.89975089,128.69,128.61,7.0065]
[1769186392743,5.89975089,128.69,128.58,109.016]
[1769186393150,5.89975089,128.69,128.59,109.0055]
[1769186393447,5.89975089,128.69,128.6,108.998]
[1769186394052,5.89975089,128.69,128.63,7.0054]
[1769186394453,7.0017,128.7,128.63,7.0054]
[1769186395351,17.96459551,128.72,128.64,7.0048]
[1769186395652,12.90065089,128.72,128.65,0.04906093]
[1769186396244,5.89975089,128.72,128.65,0.04906093]
[1769186396441,5.89975089,128.71,128.65,0.04906093]
[1769186396946,5.89975089,128.71,128.62,7.0056]
[1769186397255,0.05058301,128.69,128.62,7.0056]
[1769186397555,7.05328301,128.69,128.62,7.0056]
[1769186397756,5.9503339,128.69,128.58,114.07994462]
[1769186398347,5.89975089,128.69,128.58,114.07994462]
[1769186398548,5.89975089,128.69,128.6,109.0005]
[1769186398748,5.92431565,128.72,128.61,108.9916]
[1769186399955,12.92601565,128.7,128.63,7.0055]
[1769186400658,5.92431565,128.68,128.58,5.06394462]
[1769186401055,5.92431565,128.68,128.63,7.0054]
[1769186401269,5.92431565,128.71,128.61,108.9907]
[1769186401455,5.92431565,128.71,128.6,109.0006]
[1769186401954,12.92551565,128.71,128.64,7.0049]
[1769186402559,5.92431565,128.71,128.64,7.005]
[1769186403361,5.92431565,128.74,128.63,108.9741]
[1769186403754,5.92431565,128.74,128.68,7.0026]
[1769186404352,12.92391565,128.74,128.67,7.0032]
[1769186405056,5.92431565,128.74,128.68,7.0027]
[1769186405962,5.92431565,128.74,128.66,7.0034]
[1769186406858,5.06394462,128.75,128.61,114.05024462]
[1769186406859,5.92431565,128.71,128.61,114.05024462]
[1769186407054,5.92431565,128.71,128.62,108.9838]
[1769186407463,12.92551565,128.71,128.64,7.0049]
[1769186407765,5.92431565,128.71,128.64,7.0049]
[1769186407966,5.92431565,128.74,128.63,108.974]
[1769186408162,5.92431565,128.74,128.64,108.9668]
[1769186408664,5.92431565,128.74,128.67,7.0033]
[1769186408862,5.92431565,128.77,128.66,108.9499]
[1769186410062,5.92431565,128.77,128.67,108.9404]
[1769186410271,5.92431565,128.77,128.68,108.9286]
[1769186410471,12.92221565,128.77,128.69,7.0018]
[1769186410861,12.92221565,128.77,128.67,114.00434462]
[1769186411571,6.9973,128.79,128.71,7.001]
[1769186411769,5.92431565,128.8,128.71,7.001]
[1769186412969,6.9986,128.76,128.69,7.0019]
[1769186413365,5.92431565,128.78,128.69,7.0019]
[1769186413978,5.92431565,128.78,128.66,108.9499]
[1769186413979,6.9979,128.77,128.7,7.0017]
[1769186414372,5.92431565,128.76,128.65,108.9557]
[1769186414664,5.92431565,128.75,128.68,7.0024]
[1769186415270,113.90724462,128.79,128.62,122.9889]
[1769186415271,12.92381565,128.74,128.66,7.0034]
[1769186415472,5.92431565,128.74,128.66,7.0034]
[1769186416376,5.92431565,128.74,128.67,7.0032]
[1769186417275,12.92401565,128.74,128.67,7.0032]
[1769186418768,5.92431565,128.73,128.67,7.0032]
[1769186419064,12.92441565,128.73,128.63,108.9703]
[1769186419267,5.92431565,128.73,128.64,108.9668]
[1769186419578,5.92431565,128.73,128.68,7.0024]
[1769186419775,5.92431565,128.73,128.65,108.9532]
[1769186419970,5.92431565,128.73,128.64,108.9668]
[1769186420981,12.92441565,128.73,128.67,7.0033]
[1769186421975,12.92441565,128.73,128.59,402.8834]
[1769186421976,5.92431565,128.71,128.59,407.94734462]
[1769186422184,5.92431565,128.71,128.62,108.9834]
[1769186423978,12.92561565,128.71,128.65,7.0043]
[1769186424181,0.05028068,128.68,128.65,7.0043]
[1769186424679,108.8868,128.74,128.65,108.9574]
[1769186424680,5.94945599,128.74,128.65,108.9574]
[1769186425283,5.94945599,128.74,128.67,7.0032]
[1769186425576,7.0001,128.73,128.63,108.9743]
[1769186425774,5.94945599,128.73,128.63,108.9743]
[1769186425973,5.94945599,128.73,128.64,108.9663]
[1769186426368,5.94945599,128.73,128.63,108.9743]
[1769186426786,5.94945599,128.73,128.66,7.0038]
[1769186426980,113.93174462,128.76,128.67,0.05033145]
[1769186427182,5.94945599,128.75,128.67,0.05033145]
[1769186427382,6.9996,128.74,128.67,7.05363145]
[1769186427579,6.9996,128.74,128.67,7.0033]
[1769186428786,5.94945599,128.75,128.68,7.0027]
[1769186429184,5.94945599,128.75,128.66,108.9473]
[1769186429378,5.94945599,128.75,128.69,7.0022]
[1769186429679,5.94945599,128.75,128.7,0.04912909]
[1769186431884,12.94845599,128.75,128.7,0.04912909]
[1769186432078,5.94945599,128.75,128.67,7.0029]
[1769186432387,12.94855599,128.75,128.68,7.0027]
[1769186432986,108.8595,128.77,128.65,108.9564]
[1769186432987,12.94905599,128.74,128.65,108.9564]
[1769186433174,12.94905599,128.74,128.64,108.9638]
[1769186433687,5.94945599,128.72,128.65,7.0039]
[1769186434987,12.95055599,128.72,128.65,7.0039]
[1769186435188,5.94945599,128.71,128.65,7.0039]
[1769186436687,5.94945599,128.7,128.63,7.0051]
[1769186437595,5.94945599,128.7,128.64,7.0049]
[1769186437795,5.94945599,128.7,128.6,108.9984]
[1769186438591,5.94945599,128.7,128.64,7.0048]
[1769186438788,5.94945599,128.74,128.62,108.9831]
[1769186439601,7.0007,128.72,128.66,7.0039]
[1769186439793,12.95015599,128.72,128.66,7.0039]
[1769186439992,12.95015599,128.72,128.62,108.9831]
[1769186440384,12.95015599,128.72,128.65,7.0042]
[1769186440897,12.95065599,128.71,128.65,7.0042]
[1769186441095,12.95065599,128.71,128.63,7.005]
[1769186441400,5.94945599,128.73,128.62,108.9837]
[1769186441600,12.95005599,128.72,128.62,108.9837]
[1769186441900,12.95005599,128.72,128.65,7.0044]
[1769186442094,12.95005599,128.72,128.62,108.9837]
[1769186442803,5.94945599,128.72,128.66,7.0038]
[1769186443901,5.94945599,128.72,128.64,7.0045]
[1769186444204,5.94945599,128.72,128.62,108.9837]
[1769186444995,12.95015599,128.72,128.65,7.0041]
[1769186445909,12.95065599,128.71,128.65,7.0041]
[1769186446710,12.95115599,128.7,128.63,7.005]
[1769186447104,108.8866,128.74,128.58,109.0125]
[1769186447105,5.94945599,128.69,128.58,109.0125]
[1769186447308,5.94945599,128.69,128.62,7.006]
[1769186447704,5.94945599,128.69,128.6,109.0005]
[1769186448010,5.94945599,128.69,128.64,7.005]
[1769186449008,5.94945599,128.74,128.65,7.0042]
[1769186449415,5.94945599,128.71,128.61,108.9917]
[1769186450304,5.94945599,128.75,128.63,108.9717]
[1769186450611,5.94945599,128.75,128.65,108.9583]
[1769186451412,5.94945599,128.73,128.64,108.9654]
[1769186453013,6.9991,128.75,128.66,108.9498]
[1769186454012,12.94855599,128.75,128.65,108.9554]
[1769186455016,12.94855599,128.75,128.68,7.0027]
[1769186455811,6.9995,128.74,128.68,7.0027]
[1769186459818,0.04919967,128.72,128.68,7.0027]
[1769186460021,5.99865566,128.72,128.67,7.0033]
[1769186460419,5.99865566,128.72,128.62,108.9823]
[1769186460621,12.95085599,128.71,128.61,108.9915]
[1769186460822,5.94945599,128.71,128.6,108.9942]
[1769186461023,5.94945599,128.68,128.6,7.007]
[1769186461520,12.94935599,128.74,128.66,7.0037]
[1769186462127,5.94945599,128.76,128.67,7.0032]
[1769186462316,5.9739654,128.79,128.67,108.9397]
[1769186462514,5.9739654,128.82,128.71,108.9068]
[1769186463228,5.9739654,128.86,128.75,108.8734]
[1769186463625,5.9739654,128.86,128.77,108.8524]
[1769186463827,5.9739654,128.86,128.77,6.9976]
[1769186464224,5.9739654,128.86,128.74,113.94496054]
[1769186464427,5.9739654,128.82,128.73,6.9998]
[1769186465022,5.9739654,128.8,128.71,7.0009]
[1769186466232,5.9739654,128.83,128.73,108.8887]
[1769186466833,5.9739654,128.83,128.72,108.8966]
[1769186467238,5.9739654,128.83,128.71,113.96926054]
[1769186467432,5.9739654,128.83,128.7,108.9126]
[1769186467433,5.9739654,128.81,128.7,108.9126]
[1769186468832,5.9739654,128.81,128.71,108.9049]
[1769186469139,5.9739654,128.81,128.71,113.96926054]
[1769186469742,5.9739654,128.81,128.74,6.9993]
[1769186469935,12.9689654,128.83,128.74,6.9993]
[1769186470738,12.9689654,128.83,128.75,6.9988]